[Event "Early-Titled-Tuesday-Blitz-February-20-2024"]
[Site "Chess.com"]
[Date "2024.02.20"]
[Round "11"]
[White "Attacker_2006"]
[Black "Preobrazhenska_D2011"]
[Result "0-1"]
[WhiteElo "2373"]
[BlackElo "2390"]
[TimeControl "180+1"]
[EndTime "10:06:35 PST"]
[Termination "Preobrazhenska_D2011 won by resignation"]

1. e4 {[%clk 0:03:00.9]} 1... c5 {[%clk 0:02:59.3]} 2. Nf3 {[%clk 0:03:00.1]}
2... d6 {[%clk 0:02:59.2]} 3. d4 {[%clk 0:02:58.8]} 3... cxd4 {[%clk 0:03:00.1]}
4. Nxd4 {[%clk 0:02:58]} 4... Nf6 {[%clk 0:02:59.1]} 5. Nc3 {[%clk 0:02:57.6]}
5... a6 {[%clk 0:02:59.4]} 6. Be3 {[%clk 0:02:53.9]} 6... e5 {[%clk 0:02:58.8]}
7. Nb3 {[%clk 0:02:51.8]} 7... Be6 {[%clk 0:02:58.7]} 8. Be2 {[%clk 0:02:46.3]}
8... Be7 {[%clk 0:02:56.8]} 9. Qd2 {[%clk 0:02:45.8]} 9... Nbd7 {[%clk
0:02:51.2]} 10. f3 {[%clk 0:02:45.8]} 10... h5 {[%clk 0:02:48.5]} 11. O-O-O
{[%clk 0:02:44.4]} 11... Rc8 {[%clk 0:02:42.3]} 12. Kb1 {[%clk 0:02:43.3]} 12...
b5 {[%clk 0:02:40.8]} 13. Nd5 {[%clk 0:02:41.2]} 13... Nxd5 {[%clk 0:02:40.6]}
14. exd5 {[%clk 0:02:41]} 14... Bf5 {[%clk 0:02:41.2]} 15. Bd3 {[%clk
0:02:34.2]} 15... Bxd3 {[%clk 0:02:39.1]} 16. Qxd3 {[%clk 0:02:34.7]} 16... Qc7
{[%clk 0:02:26.6]} 17. Rd2 {[%clk 0:02:29.1]} 17... Nb6 {[%clk 0:02:22.7]} 18.
Bxb6 {[%clk 0:02:24]} 18... Qxb6 {[%clk 0:02:23.6]} 19. Qf5 {[%clk 0:02:21.9]}
19... Rc4 {[%clk 0:02:14.2]} 20. Re1 {[%clk 0:02:10.5]} 20... g6 {[%clk
0:02:04.4]} 21. Qh3 {[%clk 0:01:58.3]} 21... a5 {[%clk 0:01:46.3]} 22. Re4
{[%clk 0:01:52.6]} 22... O-O {[%clk 0:01:14.1]} 23. g4 {[%clk 0:01:44.4]} 23...
Qg1+ {[%clk 0:01:08.7]} 24. Nc1 {[%clk 0:01:43.4]} 24... Bg5 {[%clk 0:01:04]}
25. f4 {[%clk 0:01:21]} 25... Rxe4 {[%clk 0:01:00.5]} 0-1

[Event "Early-Titled-Tuesday-Blitz-February-20-2024"]
[Site "Chess.com"]
[Date "2024.02.20"]
[Round "11"]
[White "GrotBchess"]
[Black "SharapovEvgeny"]
[Result "1-0"]
[WhiteElo "2380"]
[BlackElo "2525"]
[TimeControl "180+1"]
[EndTime "10:06:50 PST"]
[Termination "GrotBchess won by resignation"]

1. e4 {[%clk 0:03:00.9]} 1... c5 {[%clk 0:02:58.7]} 2. Nf3 {[%clk 0:03:00.8]}
2... d6 {[%clk 0:02:58.7]} 3. Bb5+ {[%clk 0:03:00.5]} 3... Bd7 {[%clk 0:02:57]}
4. Bxd7+ {[%clk 0:02:59.8]} 4... Qxd7 {[%clk 0:02:57.6]} 5. O-O {[%clk
0:02:59.7]} 5... Nc6 {[%clk 0:02:57.6]} 6. c3 {[%clk 0:02:59.6]} 6... Nf6 {[%clk
0:02:57.2]} 7. Re1 {[%clk 0:02:59.8]} 7... e6 {[%clk 0:02:57.5]} 8. d4 {[%clk
0:03:00]} 8... cxd4 {[%clk 0:02:58]} 9. cxd4 {[%clk 0:03:00.9]} 9... d5 {[%clk
0:02:58.6]} 10. e5 {[%clk 0:03:01.3]} 10... Ne4 {[%clk 0:02:59]} 11. Nbd2 {[%clk
0:03:01.7]} 11... Nxd2 {[%clk 0:02:59.1]} 12. Bxd2 {[%clk 0:03:02.6]} 12... Bb4
{[%clk 0:02:59.2]} 13. Rc1 {[%clk 0:03:00.7]} 13... O-O {[%clk 0:02:58.2]} 14.
Rxc6 {[%clk 0:02:59.5]} 14... Qxc6 {[%clk 0:02:49.3]} 15. Bxb4 {[%clk
0:02:58.6]} 15... Rfc8 {[%clk 0:02:50]} 16. Bc3 {[%clk 0:02:56.4]} 16... b5
{[%clk 0:02:49.6]} 17. h4 {[%clk 0:02:54.6]} 17... a5 {[%clk 0:02:49.5]} 18. a3
{[%clk 0:02:43.2]} 18... Qc4 {[%clk 0:02:48]} 19. Qd2 {[%clk 0:02:38]} 19... b4
{[%clk 0:02:33.8]} 20. axb4 {[%clk 0:02:36.4]} 20... a4 {[%clk 0:02:34.3]} 21.
Rc1 {[%clk 0:02:23.8]} 21... Rc6 {[%clk 0:02:20]} 22. h5 {[%clk 0:02:15.1]}
22... h6 {[%clk 0:02:19.6]} 23. Ne1 {[%clk 0:02:09.4]} 23... Qb3 {[%clk
0:01:48.8]} 24. Nd3 {[%clk 0:01:36.9]} 24... a3 {[%clk 0:01:48.5]} 25. Nc5
{[%clk 0:01:30.8]} 25... Qa2 {[%clk 0:01:41.1]} 26. bxa3 {[%clk 0:01:27.7]}
26... Qxa3 {[%clk 0:01:35.7]} 27. Qb2 {[%clk 0:01:12.8]} 27... Qxb2 {[%clk
0:01:31.7]} 28. Bxb2 {[%clk 0:01:13.7]} 28... Rb6 {[%clk 0:01:31.7]} 29. Bc3
{[%clk 0:01:11.6]} 29... Ra3 {[%clk 0:01:30.6]} 30. Be1 {[%clk 0:01:06.6]} 30...
Ra2 {[%clk 0:01:26.6]} 31. Nd7 {[%clk 0:01:05.4]} 1-0

[Event "Early-Titled-Tuesday-Blitz-February-20-2024"]
[Site "Chess.com"]
[Date "2024.02.20"]
[Round "11"]
[White "kibromNNN"]
[Black "Artemiki"]
[Result "0-1"]
[WhiteElo "1748"]
[BlackElo "2426"]
[TimeControl "180+1"]
[EndTime "10:06:50 PST"]
[Termination "Artemiki won by checkmate"]

1. d4 {[%clk 0:03:00]} 1... Nf6 {[%clk 0:02:54.6]} 2. c4 {[%clk 0:02:59.8]} 2...
c5 {[%clk 0:02:55.1]} 3. dxc5 {[%clk 0:02:58.5]} 3... e6 {[%clk 0:02:41.7]} 4.
Nc3 {[%clk 0:02:57.5]} 4... Bxc5 {[%clk 0:02:39.6]} 5. Nf3 {[%clk 0:02:56.4]}
5... Nc6 {[%clk 0:02:38.8]} 6. g3 {[%clk 0:02:54.2]} 6... O-O {[%clk 0:02:24.7]}
7. Bg2 {[%clk 0:02:53.4]} 7... a6 {[%clk 0:01:55.2]} 8. O-O {[%clk 0:02:52.1]}
8... b5 {[%clk 0:01:55.7]} 9. cxb5 {[%clk 0:02:50.9]} 9... axb5 {[%clk
0:01:56.6]} 10. Nxb5 {[%clk 0:02:46.5]} 10... d5 {[%clk 0:01:55.8]} 11. Bf4
{[%clk 0:02:42.2]} 11... Qb6 {[%clk 0:01:15.2]} 12. a4 {[%clk 0:02:32.6]} 12...
Ng4 {[%clk 0:00:51.7]} 13. e3 {[%clk 0:02:22.5]} 13... e5 {[%clk 0:00:51]} 14.
h3 {[%clk 0:01:56.3]} 14... exf4 {[%clk 0:00:48.4]} 15. hxg4 {[%clk 0:01:55]}
15... fxe3 {[%clk 0:00:48.5]} 16. fxe3 {[%clk 0:01:49.3]} 16... Bxe3+ {[%clk
0:00:49.4]} 17. Kh1 {[%clk 0:01:41.1]} 17... Bxg4 {[%clk 0:00:48]} 18. Qd3
{[%clk 0:01:27.2]} 18... Ne5 {[%clk 0:00:31.9]} 19. Nxe5 {[%clk 0:01:22.3]}
19... Qh6+ {[%clk 0:00:31.7]} 20. Bh3 {[%clk 0:01:18.5]} 20... Qxh3# {[%clk
0:00:32.6]} 0-1

[Event "Early-Titled-Tuesday-Blitz-February-20-2024"]
[Site "Chess.com"]
[Date "2024.02.20"]
[Round "11"]
[White "Rodalquilar"]
[Black "mishanick"]
[Result "1-0"]
[WhiteElo "2780"]
[BlackElo "3007"]
[TimeControl "180+1"]
[EndTime "10:06:54 PST"]
[Termination "Rodalquilar won by checkmate"]

1. d4 {[%clk 0:03:00.9]} 1... Nf6 {[%clk 0:03:00]} 2. Nf3 {[%clk 0:03:01.3]}
2... d5 {[%clk 0:03:00.2]} 3. Bf4 {[%clk 0:03:01.6]} 3... e6 {[%clk 0:02:59.8]}
4. e3 {[%clk 0:03:02.1]} 4... Bd6 {[%clk 0:03:00.2]} 5. Nbd2 {[%clk 0:03:02.3]}
5... O-O {[%clk 0:03:00.3]} 6. c3 {[%clk 0:03:02.1]} 6... c5 {[%clk 0:03:00.4]}
7. Bd3 {[%clk 0:03:01.6]} 7... Qc7 {[%clk 0:03:00]} 8. Bxd6 {[%clk 0:03:00.7]}
8... Qxd6 {[%clk 0:03:00.9]} 9. Ne5 {[%clk 0:03:01.3]} 9... Nfd7 {[%clk
0:02:52.9]} 10. f4 {[%clk 0:02:53]} 10... Nc6 {[%clk 0:02:53.4]} 11. Qh5 {[%clk
0:02:48]} 11... g6 {[%clk 0:02:52.5]} 12. Qh6 {[%clk 0:02:45]} 12... Qe7 {[%clk
0:02:50]} 13. h4 {[%clk 0:01:53.3]} 13... Ncxe5 {[%clk 0:02:38.3]} 14. dxe5
{[%clk 0:01:37.1]} 14... f5 {[%clk 0:02:37.8]} 15. h5 {[%clk 0:01:28.7]} 15...
Qg7 {[%clk 0:02:24.4]} 16. hxg6 {[%clk 0:01:28.5]} 16... hxg6 {[%clk 0:02:17.3]}
17. Qg5 {[%clk 0:01:23]} 17... c4 {[%clk 0:02:10.6]} 18. Bc2 {[%clk 0:01:21.6]}
18... Nc5 {[%clk 0:02:10.2]} 19. Rh6 {[%clk 0:01:21.2]} 19... Kf7 {[%clk
0:02:10.5]} 20. Qh4 {[%clk 0:01:13.6]} 20... Kg8 {[%clk 0:01:03.6]} 21. O-O-O
{[%clk 0:01:12.3]} 21... Bd7 {[%clk 0:00:50.8]} 22. Rh1 {[%clk 0:01:08.1]} 22...
Be8 {[%clk 0:00:49.3]} 23. Rh8+ {[%clk 0:01:03.4]} 23... Kf7 {[%clk 0:00:49.5]}
24. Rh7 {[%clk 0:01:03.8]} 24... Rg8 {[%clk 0:00:47]} 25. Qf6# {[%clk
0:01:03.1]} 1-0

[Event "Early-Titled-Tuesday-Blitz-February-20-2024"]
[Site "Chess.com"]
[Date "2024.02.20"]
[Round "11"]
[White "TokChess"]
[Black "ValentunHulka"]
[Result "0-1"]
[WhiteElo "2555"]
[BlackElo "2753"]
[TimeControl "180+1"]
[EndTime "10:06:58 PST"]
[Termination "ValentunHulka won by resignation"]

1. c4 {[%clk 0:02:59.5]} 1... e5 {[%clk 0:03:00.2]} 2. b3 {[%clk 0:03:00.1]}
2... c5 {[%clk 0:02:58.3]} 3. Bb2 {[%clk 0:03:00.4]} 3... Nc6 {[%clk 0:02:59.2]}
4. e3 {[%clk 0:03:00.9]} 4... Nf6 {[%clk 0:02:58.7]} 5. d3 {[%clk 0:03:00.1]}
5... d6 {[%clk 0:02:58.9]} 6. Nf3 {[%clk 0:03:00.2]} 6... Be7 {[%clk 0:02:59.6]}
7. a3 {[%clk 0:03:00.8]} 7... O-O {[%clk 0:03:00.3]} 8. Nbd2 {[%clk 0:03:01.6]}
8... Ne8 {[%clk 0:02:58.9]} 9. Be2 {[%clk 0:03:02]} 9... f5 {[%clk 0:02:59.4]}
10. Rb1 {[%clk 0:02:58.6]} 10... b6 {[%clk 0:02:58.9]} 11. O-O {[%clk
0:02:57.9]} 11... Bb7 {[%clk 0:02:59.4]} 12. Qc2 {[%clk 0:02:55.9]} 12... Kh8
{[%clk 0:02:59.6]} 13. Bc3 {[%clk 0:02:53.5]} 13... Bf6 {[%clk 0:02:58.9]} 14.
b4 {[%clk 0:02:53.2]} 14... Nc7 {[%clk 0:02:58.2]} 15. bxc5 {[%clk 0:02:48.8]}
15... dxc5 {[%clk 0:02:57.3]} 16. Rfd1 {[%clk 0:02:45.4]} 16... Qe7 {[%clk
0:02:57.1]} 17. Nf1 {[%clk 0:02:45.5]} 17... Rad8 {[%clk 0:02:56.9]} 18. Ng3
{[%clk 0:02:45.3]} 18... g6 {[%clk 0:02:57]} 19. Qb2 {[%clk 0:02:42.7]} 19...
Bg7 {[%clk 0:02:45.4]} 20. a4 {[%clk 0:02:39.6]} 20... Ba8 {[%clk 0:02:44.9]}
21. Ra1 {[%clk 0:02:37]} 21... a5 {[%clk 0:02:39.1]} 22. Rab1 {[%clk 0:02:25.3]}
22... Nb4 {[%clk 0:02:34.1]} 23. d4 {[%clk 0:02:15.5]} 23... f4 {[%clk
0:02:23.6]} 24. Nf1 {[%clk 0:01:43.9]} 24... fxe3 {[%clk 0:02:12.7]} 25. fxe3
{[%clk 0:01:35.9]} 25... exd4 {[%clk 0:01:56.6]} 26. exd4 {[%clk 0:01:35.2]}
26... Kg8 {[%clk 0:01:57.5]} 27. Re1 {[%clk 0:01:16.9]} 27... Qf6 {[%clk
0:01:56.5]} 28. Rbd1 {[%clk 0:01:09.1]} 28... Ne6 {[%clk 0:01:55.7]} 29. Rc1
{[%clk 0:00:20.2]} 29... Nxd4 {[%clk 0:01:46.8]} 0-1

[Event "Early-Titled-Tuesday-Blitz-February-20-2024"]
[Site "Chess.com"]
[Date "2024.02.20"]
[Round "11"]
[White "BardArtem"]
[Black "SahibSinghKnight"]
[Result "1-0"]
[WhiteElo "2764"]
[BlackElo "2570"]
[TimeControl "180+1"]
[EndTime "10:07:05 PST"]
[Termination "BardArtem won by resignation"]

1. e4 {[%clk 0:02:57.8]} 1... e6 {[%clk 0:03:00.1]} 2. d4 {[%clk 0:02:57.4]}
2... d5 {[%clk 0:03:01]} 3. Nc3 {[%clk 0:02:57.5]} 3... Nf6 {[%clk 0:02:57]} 4.
exd5 {[%clk 0:02:54.3]} 4... exd5 {[%clk 0:02:51.7]} 5. Bg5 {[%clk 0:02:53.8]}
5... c6 {[%clk 0:02:50.9]} 6. Qe2+ {[%clk 0:02:52.6]} 6... Be6 {[%clk
0:02:48.6]} 7. f4 {[%clk 0:02:52.3]} 7... h6 {[%clk 0:02:35.3]} 8. Bh4 {[%clk
0:02:51.8]} 8... Qe7 {[%clk 0:02:22.1]} 9. O-O-O {[%clk 0:02:44.8]} 9... Nbd7
{[%clk 0:02:19.8]} 10. Re1 {[%clk 0:02:42.2]} 10... g6 {[%clk 0:02:16.6]} 11.
Nf3 {[%clk 0:02:35.9]} 11... Bg7 {[%clk 0:02:10]} 12. Ne5 {[%clk 0:02:34.8]}
12... Nf8 {[%clk 0:01:57.9]} 13. g4 {[%clk 0:02:29]} 13... O-O-O {[%clk
0:01:41]} 14. Rg1 {[%clk 0:02:00.4]} 14... Qb4 {[%clk 0:01:34]} 15. f5 {[%clk
0:01:51.8]} 15... Qxd4 {[%clk 0:01:00]} 16. fxe6 {[%clk 0:01:45.8]} 16... Qxg1
{[%clk 0:00:47.1]} 17. Nxf7 {[%clk 0:01:36.3]} 17... g5 {[%clk 0:00:12.7]} 18.
e7 {[%clk 0:01:30.7]} 18... Rd7 {[%clk 0:00:08.6]} 19. e8=Q+ {[%clk 0:01:21.8]}
1-0

[Event "Early-Titled-Tuesday-Blitz-February-20-2024"]
[Site "Chess.com"]
[Date "2024.02.20"]
[Round "11"]
[White "AmanteDeMoi"]
[Black "N_Mullodzhanov"]
[Result "1-0"]
[WhiteElo "2595"]
[BlackElo "2478"]
[TimeControl "180+1"]
[EndTime "10:07:05 PST"]
[Termination "AmanteDeMoi won by checkmate"]

1. Nf3 {[%clk 0:03:00.9]} 1... d5 {[%clk 0:02:58.4]} 2. e4 {[%clk 0:03:01.4]}
2... dxe4 {[%clk 0:02:57.8]} 3. Ng5 {[%clk 0:03:01.4]} 3... Nf6 {[%clk
0:02:56.7]} 4. Bc4 {[%clk 0:03:01.2]} 4... e6 {[%clk 0:02:56.7]} 5. Qe2 {[%clk
0:03:01.3]} 5... Nbd7 {[%clk 0:02:47.4]} 6. Nxe4 {[%clk 0:03:01.3]} 6... Nxe4
{[%clk 0:02:47.2]} 7. Qxe4 {[%clk 0:03:02.2]} 7... Nf6 {[%clk 0:02:47.4]} 8. Qf3
{[%clk 0:03:02.7]} 8... Be7 {[%clk 0:02:44.8]} 9. O-O {[%clk 0:03:03.2]} 9...
O-O {[%clk 0:02:44.8]} 10. c3 {[%clk 0:03:03.8]} 10... Rb8 {[%clk 0:02:44.8]}
11. d4 {[%clk 0:03:04.1]} 11... b5 {[%clk 0:02:44.9]} 12. Bd3 {[%clk 0:03:03.6]}
12... Bb7 {[%clk 0:02:45.1]} 13. Qh3 {[%clk 0:03:04.3]} 13... Be4 {[%clk
0:02:40.5]} 14. Nd2 {[%clk 0:02:59.1]} 14... Bxd3 {[%clk 0:02:38.2]} 15. Qxd3
{[%clk 0:03:00]} 15... c5 {[%clk 0:02:38.7]} 16. Nf3 {[%clk 0:02:56]} 16... c4
{[%clk 0:02:35.1]} 17. Qe2 {[%clk 0:02:54.9]} 17... a6 {[%clk 0:02:34.2]} 18.
Ne5 {[%clk 0:02:54.7]} 18... Qd5 {[%clk 0:02:32.9]} 19. Bg5 {[%clk 0:02:53.2]}
19... Rfd8 {[%clk 0:02:29.7]} 20. a3 {[%clk 0:02:52.7]} 20... Rb7 {[%clk
0:02:25.3]} 21. f4 {[%clk 0:02:53.1]} 21... Ne4 {[%clk 0:02:21]} 22. Bxe7 {[%clk
0:02:53.2]} 22... Rxe7 {[%clk 0:02:21.9]} 23. Rae1 {[%clk 0:02:53.9]} 23... Nd6
{[%clk 0:02:18.4]} 24. g4 {[%clk 0:02:53.4]} 24... f6 {[%clk 0:02:13.4]} 25. Nf3
{[%clk 0:02:53.3]} 25... Rde8 {[%clk 0:02:09.1]} 26. Qg2 {[%clk 0:02:51.3]}
26... f5 {[%clk 0:02:02.7]} 27. Re5 {[%clk 0:02:50.8]} 27... Qb7 {[%clk
0:01:56.9]} 28. Rfe1 {[%clk 0:02:47.2]} 28... Ne4 {[%clk 0:01:56.3]} 29. Ng5
{[%clk 0:02:46.4]} 29... Nxg5 {[%clk 0:01:53]} 30. Qxb7 {[%clk 0:02:44.4]} 30...
Nh3+ {[%clk 0:01:52.6]} 31. Kg2 {[%clk 0:02:43.2]} 31... Nxf4+ {[%clk
0:01:52.7]} 32. Kf3 {[%clk 0:02:43.8]} 32... fxg4+ {[%clk 0:01:41.6]} 33. Kxf4
{[%clk 0:02:44.7]} 33... Rxb7 {[%clk 0:01:41.7]} 34. Rxe6 {[%clk 0:02:44.7]}
34... Rxe6 {[%clk 0:01:35.3]} 35. Rxe6 {[%clk 0:02:45.6]} 35... h5 {[%clk
0:01:35.5]} 36. d5 {[%clk 0:02:42.8]} 36... Rd7 {[%clk 0:01:30.8]} 37. d6 {[%clk
0:02:42.3]} 37... Kf7 {[%clk 0:01:31.2]} 38. Ke5 {[%clk 0:02:42.5]} 38... h4
{[%clk 0:01:30]} 39. Kd5 {[%clk 0:02:42.8]} 39... g6 {[%clk 0:01:16.2]} 40. Re4
{[%clk 0:02:42.1]} 40... Kf6 {[%clk 0:00:57.7]} 41. Rxg4 {[%clk 0:02:40.3]}
41... g5 {[%clk 0:00:58]} 42. Kc6 {[%clk 0:02:40]} 42... Rd8 {[%clk 0:00:51.6]}
43. Kc7 {[%clk 0:02:40.2]} 43... Rg8 {[%clk 0:00:48.6]} 44. d7 {[%clk
0:02:40.4]} 44... Kf5 {[%clk 0:00:45.9]} 45. h3 {[%clk 0:02:40.6]} 45... Rg7
{[%clk 0:00:33]} 46. Kc8 {[%clk 0:02:40.8]} 46... Rg8+ {[%clk 0:00:32.9]} 47.
d8=Q {[%clk 0:02:41.1]} 47... Rxd8+ {[%clk 0:00:33.6]} 48. Kxd8 {[%clk 0:02:42]}
48... Kg6 {[%clk 0:00:34.1]} 49. Kc7 {[%clk 0:02:42.3]} 49... a5 {[%clk
0:00:33.4]} 50. Kb6 {[%clk 0:02:43.2]} 50... b4 {[%clk 0:00:33.8]} 51. axb4
{[%clk 0:02:44]} 51... axb4 {[%clk 0:00:34.4]} 52. Kc5 {[%clk 0:02:44.6]} 52...
bxc3 {[%clk 0:00:33.6]} 53. bxc3 {[%clk 0:02:45.5]} 53... Kf5 {[%clk 0:00:34.1]}
54. Kxc4 {[%clk 0:02:46.4]} 54... Ke5 {[%clk 0:00:34.7]} 55. Kd3 {[%clk
0:02:47.3]} 55... Kd5 {[%clk 0:00:34]} 56. c4+ {[%clk 0:02:48.2]} 56... Kc5
{[%clk 0:00:34.5]} 57. Kc3 {[%clk 0:02:49.1]} 57... Kd6 {[%clk 0:00:34.8]} 58.
Rxg5 {[%clk 0:02:50]} 58... Ke6 {[%clk 0:00:35.2]} 59. Rh5 {[%clk 0:02:50.9]}
59... Kf6 {[%clk 0:00:35.7]} 60. Rxh4 {[%clk 0:02:51.8]} 60... Kg5 {[%clk
0:00:36.4]} 61. Rg4+ {[%clk 0:02:52.7]} 61... Kf5 {[%clk 0:00:36.3]} 62. Kd4
{[%clk 0:02:53.6]} 62... Kf6 {[%clk 0:00:36.8]} 63. Rg2 {[%clk 0:02:54.4]} 63...
Kf5 {[%clk 0:00:37.3]} 64. c5 {[%clk 0:02:55.3]} 64... Kf6 {[%clk 0:00:37.9]}
65. c6 {[%clk 0:02:56.2]} 65... Kf5 {[%clk 0:00:38.2]} 66. Rg4 {[%clk
0:02:57.1]} 66... Kf6 {[%clk 0:00:38.5]} 67. c7 {[%clk 0:02:58]} 67... Kf7
{[%clk 0:00:39.1]} 68. c8=Q {[%clk 0:02:58]} 68... Kf6 {[%clk 0:00:39.6]} 69.
Qf8+ {[%clk 0:02:57.1]} 69... Ke6 {[%clk 0:00:39.8]} 70. Rg6+ {[%clk 0:02:57.6]}
70... Kd7 {[%clk 0:00:40.4]} 71. Rd6+ {[%clk 0:02:58.2]} 71... Kc7 {[%clk
0:00:40.9]} 72. h4 {[%clk 0:02:59.1]} 72... Kb7 {[%clk 0:00:41.2]} 73. h5 {[%clk
0:03:00]} 73... Kc7 {[%clk 0:00:42.1]} 74. h6 {[%clk 0:03:00.9]} 74... Kb7
{[%clk 0:00:43]} 75. h7 {[%clk 0:03:01.8]} 75... Kc7 {[%clk 0:00:43.9]} 76. h8=Q
{[%clk 0:03:02.7]} 76... Kb7 {[%clk 0:00:44.8]} 77. Qhg7# {[%clk 0:03:03.6]} 1-0

[Event "Early-Titled-Tuesday-Blitz-February-20-2024"]
[Site "Chess.com"]
[Date "2024.02.20"]
[Round "11"]
[White "Muracle"]
[Black "BashirliSaadat"]
[Result "1-0"]
[WhiteElo "2469"]
[BlackElo "2347"]
[TimeControl "180+1"]
[EndTime "10:07:08 PST"]
[Termination "Muracle won by checkmate"]

1. d4 {[%clk 0:02:59.2]} 1... d5 {[%clk 0:02:59.8]} 2. Nf3 {[%clk 0:02:59.1]}
2... Nf6 {[%clk 0:03:00.3]} 3. g3 {[%clk 0:02:59.5]} 3... g6 {[%clk 0:02:58.5]}
4. Bg2 {[%clk 0:02:59.9]} 4... Bg7 {[%clk 0:02:59.2]} 5. O-O {[%clk 0:02:58.6]}
5... O-O {[%clk 0:02:59.8]} 6. c4 {[%clk 0:02:59.1]} 6... c6 {[%clk 0:03:00.3]}
7. b3 {[%clk 0:02:59.7]} 7... b6 {[%clk 0:02:57.9]} 8. Bb2 {[%clk 0:02:58.7]}
8... Bb7 {[%clk 0:02:58.4]} 9. Nbd2 {[%clk 0:02:59.1]} 9... Nbd7 {[%clk
0:02:57.8]} 10. Qc2 {[%clk 0:02:59.5]} 10... Re8 {[%clk 0:02:56.9]} 11. Rfe1
{[%clk 0:02:59.1]} 11... Rc8 {[%clk 0:02:52.9]} 12. e4 {[%clk 0:02:57.2]} 12...
dxe4 {[%clk 0:02:53.8]} 13. Nxe4 {[%clk 0:02:58.1]} 13... Nxe4 {[%clk
0:02:54.2]} 14. Qxe4 {[%clk 0:02:59]} 14... Nf6 {[%clk 0:02:53.5]} 15. Qe2
{[%clk 0:02:58.6]} 15... e6 {[%clk 0:02:53.2]} 16. Rad1 {[%clk 0:02:57.4]} 16...
Qc7 {[%clk 0:02:52.9]} 17. Ne5 {[%clk 0:02:56.8]} 17... c5 {[%clk 0:02:49.2]}
18. Bxb7 {[%clk 0:02:53.5]} 18... Qxb7 {[%clk 0:02:50.1]} 19. Qf3 {[%clk
0:02:53]} 19... Qxf3 {[%clk 0:02:48.5]} 20. Nxf3 {[%clk 0:02:53.9]} 20... cxd4
{[%clk 0:02:46.4]} 21. Nxd4 {[%clk 0:02:54.8]} 21... a6 {[%clk 0:02:36.4]} 22.
Kf1 {[%clk 0:02:50]} 22... Red8 {[%clk 0:02:35.3]} 23. Nc6 {[%clk 0:02:50.4]}
23... Rxd1 {[%clk 0:02:11.2]} 24. Rxd1 {[%clk 0:02:51.3]} 24... Rxc6 {[%clk
0:01:53.7]} 25. Rd8+ {[%clk 0:02:49.4]} 25... Bf8 {[%clk 0:01:54]} 26. Bxf6
{[%clk 0:02:48.8]} 26... Rd6 {[%clk 0:01:00.6]} 27. Ra8 {[%clk 0:02:44.6]} 27...
Rd7 {[%clk 0:00:49.2]} 28. g4 {[%clk 0:02:43.9]} 28... h6 {[%clk 0:00:47.4]} 29.
h4 {[%clk 0:02:43.6]} 29... Rb7 {[%clk 0:00:42.3]} 30. g5 {[%clk 0:02:42.9]}
30... hxg5 {[%clk 0:00:34.2]} 31. hxg5 {[%clk 0:02:43.8]} 31... a5 {[%clk
0:00:25.3]} 32. f4 {[%clk 0:02:41.3]} 32... Rd7 {[%clk 0:00:18.9]} 33. Ke2
{[%clk 0:02:40.9]} 33... Rb7 {[%clk 0:00:17.3]} 34. Ke3 {[%clk 0:02:41]} 34...
Rd7 {[%clk 0:00:15.9]} 35. Ke4 {[%clk 0:02:41.5]} 35... Rb7 {[%clk 0:00:14.4]}
36. a3 {[%clk 0:02:42.2]} 36... Rc7 {[%clk 0:00:11.9]} 37. Kd3 {[%clk
0:02:40.6]} 37... Rd7+ {[%clk 0:00:11.9]} 38. Kc3 {[%clk 0:02:41.3]} 38... Rc7
{[%clk 0:00:09.9]} 39. b4 {[%clk 0:02:41.9]} 39... axb4+ {[%clk 0:00:09.4]} 40.
axb4 {[%clk 0:02:42.8]} 40... Rd7 {[%clk 0:00:09.3]} 41. c5 {[%clk 0:02:42.9]}
41... bxc5 {[%clk 0:00:09.4]} 42. bxc5 {[%clk 0:02:43.8]} 42... Rc7 {[%clk
0:00:10.1]} 43. Kd4 {[%clk 0:02:44.5]} 43... Rxc5 {[%clk 0:00:06.8]} 44. Rxf8+
{[%clk 0:02:41]} 44... Kxf8 {[%clk 0:00:03.3]} 45. Kxc5 {[%clk 0:02:41.9]} 45...
Ke8 {[%clk 0:00:03.3]} 46. Kd6 {[%clk 0:02:42.6]} 46... Kf8 {[%clk 0:00:02.5]}
47. Kd7 {[%clk 0:02:43.1]} 47... Kg8 {[%clk 0:00:02.9]} 48. Ke7 {[%clk
0:02:43.8]} 48... Kh7 {[%clk 0:00:01.9]} 49. Kxf7 {[%clk 0:02:41.7]} 49... e5
{[%clk 0:00:02.5]} 50. f5 {[%clk 0:02:42.3]} 50... gxf5 {[%clk 0:00:01.5]} 51.
Bg7 {[%clk 0:02:42]} 51... f4 {[%clk 0:00:01]} 52. g6# {[%clk 0:02:42.9]} 1-0

[Event "Early-Titled-Tuesday-Blitz-February-20-2024"]
[Site "Chess.com"]
[Date "2024.02.20"]
[Round "11"]
[White "Zohid6"]
[Black "dropstoneDP"]
[Result "0-1"]
[WhiteElo "2874"]
[BlackElo "3014"]
[TimeControl "180+1"]
[EndTime "10:07:22 PST"]
[Termination "dropstoneDP won by resignation"]

1. e4 {[%clk 0:03:00.9]} 1... e5 {[%clk 0:02:58.9]} 2. Nf3 {[%clk 0:03:00.9]}
2... Nf6 {[%clk 0:02:59.5]} 3. Nxe5 {[%clk 0:02:56.9]} 3... d6 {[%clk
0:02:59.2]} 4. Nd3 {[%clk 0:02:57]} 4... Nxe4 {[%clk 0:02:59.7]} 5. Qe2 {[%clk
0:02:57.5]} 5... Qe7 {[%clk 0:02:59.5]} 6. Nf4 {[%clk 0:02:58]} 6... Nc6 {[%clk
0:02:59.7]} 7. Nd5 {[%clk 0:02:58.3]} 7... Nd4 {[%clk 0:02:59.9]} 8. Nxe7 {[%clk
0:02:58.7]} 8... Nxe2 {[%clk 0:03:00.5]} 9. Nd5 {[%clk 0:02:58.8]} 9... Nd4
{[%clk 0:03:00.8]} 10. d3 {[%clk 0:02:49.3]} 10... Nxc2+ {[%clk 0:03:00.5]} 11.
Kd1 {[%clk 0:02:49.6]} 11... Nxa1 {[%clk 0:03:00.9]} 12. dxe4 {[%clk 0:02:50]}
12... Kd8 {[%clk 0:03:00.4]} 13. Bg5+ {[%clk 0:02:50]} 13... f6 {[%clk
0:03:00.1]} 14. Be3 {[%clk 0:02:47.5]} 14... c6 {[%clk 0:02:59.3]} 15. Ndc3
{[%clk 0:02:47.5]} 15... f5 {[%clk 0:02:54.1]} 16. Nd2 {[%clk 0:02:38.3]} 16...
Be7 {[%clk 0:02:49.9]} 17. Bd3 {[%clk 0:02:36.9]} 17... fxe4 {[%clk 0:02:45.7]}
18. Ndxe4 {[%clk 0:02:25.1]} 18... d5 {[%clk 0:02:46.2]} 19. Ng5 {[%clk
0:02:16.6]} 19... Bg4+ {[%clk 0:02:02]} 20. f3 {[%clk 0:02:09.8]} 20... Bh5
{[%clk 0:02:00.8]} 21. Kd2 {[%clk 0:01:56.3]} 21... Ke8 {[%clk 0:01:15.6]} 22.
h4 {[%clk 0:01:22.2]} 22... Bg6 {[%clk 0:01:11.6]} 23. Ne6 {[%clk 0:01:02.3]}
23... Bxd3 {[%clk 0:01:05.7]} 24. Kxd3 {[%clk 0:01:03.2]} 24... Kf7 {[%clk
0:01:05.4]} 25. Nf4 {[%clk 0:01:00.1]} 25... d4 {[%clk 0:01:03.7]} 26. Bxd4
{[%clk 0:00:52.4]} 26... Rad8 {[%clk 0:01:04.3]} 27. Re1 {[%clk 0:00:41.9]}
27... Rxd4+ {[%clk 0:01:02.6]} 0-1